[Event "*** Titled Tuesday 3|2 Blitz"]
[Site "Chess.com"]
[Date "2014.12.30"]
[Round "9"]
[White "FairChess_on_YouTube"]
[Black "Sebastian"]
[Result "1-0"]
[WhiteElo "2708"]
[BlackElo "2533"]
[TimeControl "180+2"]
[EndTime "12:58:47 PST"]
[Termination "FairChess_on_YouTube won by resignation"]

1. e4 {[%clk 0:02:53.9]} 1... c5 {[%clk 0:02:53]} 2. Nf3 {[%clk 0:02:54.6]} 2...
d6 {[%clk 0:02:43.2]} 3. d4 {[%clk 0:02:55.3]} 3... cxd4 {[%clk 0:02:44.5]} 4.
Nxd4 {[%clk 0:02:56.9]} 4... Nf6 {[%clk 0:02:41.2]} 5. Nc3 {[%clk 0:02:57.9]}
5... a6 {[%clk 0:02:42.6]} 6. h3 {[%clk 0:02:59]} 6... Nc6 {[%clk 0:02:43.3]} 7.
g4 {[%clk 0:02:58.3]} 7... Qb6 {[%clk 0:02:44.3]} 8. Nb3 {[%clk 0:02:57.3]} 8...
e6 {[%clk 0:02:45.7]} 9. Be3 {[%clk 0:02:57.2]} 9... Qc7 {[%clk 0:02:47]} 10. g5
{[%clk 0:02:58.4]} 10... Nd7 {[%clk 0:02:47.6]} 11. f4 {[%clk 0:02:57.8]} 11...
b5 {[%clk 0:02:48]} 12. Bg2 {[%clk 0:02:52.3]} 12... Bb7 {[%clk 0:02:44.2]} 13.
O-O {[%clk 0:02:50.8]} 13... Be7 {[%clk 0:02:42.4]} 14. Qg4 {[%clk 0:02:44.7]}
14... g6 {[%clk 0:02:36.7]} 15. Rad1 {[%clk 0:02:42.1]} 15... h6 {[%clk
0:02:34.6]} 16. gxh6 {[%clk 0:02:37]} 16... Rxh6 {[%clk 0:02:27.6]} 17. Qg3
{[%clk 0:02:04.9]} 17... Rh8 {[%clk 0:02:16.2]} 18. a4 {[%clk 0:01:51.2]} 18...
b4 {[%clk 0:02:12.6]} 19. Nd5 {[%clk 0:01:52.7]} 19... exd5 {[%clk 0:02:03.8]}
20. exd5 {[%clk 0:01:54.3]} 20... Na5 {[%clk 0:02:05]} 21. Nxa5 {[%clk
0:01:52.9]} 21... Qxa5 {[%clk 0:02:04.7]} 22. Bd4 {[%clk 0:01:53.1]} 22... Bf6
{[%clk 0:01:57.7]} 23. Rde1+ {[%clk 0:01:36.5]} 23... Kf8 {[%clk 0:01:58.2]} 24.
Bxf6 {[%clk 0:01:37.3]} 24... Nxf6 {[%clk 0:01:59]} 25. f5 {[%clk 0:01:38.8]}
25... Qb6+ {[%clk 0:02:00.1]} 26. Kh1 {[%clk 0:01:38.1]} 26... g5 {[%clk
0:02:01.5]} 27. Re6 {[%clk 0:01:09.4]} 27... Qd4 {[%clk 0:01:49]} 28. c3 {[%clk
0:00:59.7]} 28... bxc3 {[%clk 0:01:49.4]} 29. bxc3 {[%clk 0:01:00.6]} 29... Qh4
{[%clk 0:01:49.2]} 30. Qxd6+ {[%clk 0:00:59.3]} 30... Kg7 {[%clk 0:01:50.5]} 31.
Rxf6 {[%clk 0:00:57.4]} 31... g4 {[%clk 0:01:51.7]} 32. Rxf7+ {[%clk 0:00:16.9]}
32... Kxf7 {[%clk 0:01:52.2]} 33. f6 {[%clk 0:00:16.2]} 33... Rh7 {[%clk
0:01:16.9]} 34. Qe7+ {[%clk 0:00:14.4]} 34... Kg6 {[%clk 0:01:14.6]} 35. Be4+
{[%clk 0:00:15.2]} 35... Kg5 {[%clk 0:01:14.4]} 36. f7+ {[%clk 0:00:12.5]} 1-0

[Event "*** Titled Tuesday 3|2 Blitz"]
[Site "Chess.com"]
[Date "2014.12.30"]
[Round "9"]
[White "chessmachined"]
[Black "kharposh"]
[Result "1-0"]
[WhiteElo "2142"]
[BlackElo "1999"]
[TimeControl "180+2"]
[EndTime "12:59:01 PST"]
[Termination "chessmachined won by checkmate"]

1. d4 {[%clk 0:01:58.6]} 1... g6 {[%clk 0:02:56.7]} 2. c4 {[%clk 0:01:59]} 2...
Bg7 {[%clk 0:02:58.1]} 3. Nc3 {[%clk 0:02:00.6]} 3... b6 {[%clk 0:02:59.2]} 4.
Nf3 {[%clk 0:02:00.9]} 4... Bb7 {[%clk 0:03:00.7]} 5. g3 {[%clk 0:02:00.6]} 5...
e6 {[%clk 0:03:02.2]} 6. Bg2 {[%clk 0:02:01.5]} 6... d6 {[%clk 0:03:03.8]} 7.
O-O {[%clk 0:02:02.6]} 7... Ne7 {[%clk 0:03:05.4]} 8. e4 {[%clk 0:02:03.8]} 8...
Nd7 {[%clk 0:03:06.8]} 9. Bg5 {[%clk 0:02:03.4]} 9... h6 {[%clk 0:03:04.4]} 10.
Be3 {[%clk 0:02:00.2]} 10... O-O {[%clk 0:03:05.4]} 11. Qd2 {[%clk 0:02:00]}
11... Kh7 {[%clk 0:03:06.1]} 12. Rad1 {[%clk 0:01:52]} 12... a6 {[%clk
0:03:05.6]} 13. a3 {[%clk 0:01:51.9]} 13... c6 {[%clk 0:02:51]} 14. h4 {[%clk
0:01:52.6]} 14... Qc7 {[%clk 0:02:51]} 15. h5 {[%clk 0:01:52.9]} 15... g5 {[%clk
0:02:48.2]} 16. Bh3 {[%clk 0:01:29.7]} 16... f5 {[%clk 0:02:46.9]} 17. exf5
{[%clk 0:01:30.6]} 17... exf5 {[%clk 0:02:46.8]} 18. Bxg5 {[%clk 0:01:31.5]}
18... hxg5 {[%clk 0:02:44.1]} 19. Nxg5+ {[%clk 0:01:32.6]} 19... Kg8 {[%clk
0:02:41.3]} 20. Ne6 {[%clk 0:01:33.2]} 20... Qc8 {[%clk 0:02:41.6]} 21. Qg5
{[%clk 0:01:31.9]} 21... Rf7 {[%clk 0:02:39.2]} 22. h6 {[%clk 0:01:33.3]} 22...
Nf6 {[%clk 0:02:33]} 23. Nxg7 {[%clk 0:01:27.7]} 23... Nh7 {[%clk 0:02:32.4]}
24. Qh4 {[%clk 0:01:25.3]} 24... Ng6 {[%clk 0:02:32.4]} 25. Qh5 {[%clk
0:01:26.4]} 25... Ngf8 {[%clk 0:02:28.9]} 26. Rde1 {[%clk 0:01:25.5]} 26... d5
{[%clk 0:02:28.2]} 27. Bxf5 {[%clk 0:01:14]} 27... Qd8 {[%clk 0:02:25.1]} 28. c5
{[%clk 0:01:09.4]} 28... bxc5 {[%clk 0:02:24.7]} 29. dxc5 {[%clk 0:01:11.3]}
29... Qf6 {[%clk 0:02:24.8]} 30. g4 {[%clk 0:01:04.6]} 30... Bc8 {[%clk
0:02:21.6]} 31. Kh1 {[%clk 0:00:51.8]} 31... Bxf5 {[%clk 0:02:21.2]} 32. gxf5
{[%clk 0:00:53]} 32... Rb8 {[%clk 0:02:16.6]} 33. Rg1 {[%clk 0:00:53.7]} 33...
Kh8 {[%clk 0:02:16]} 34. Re2 {[%clk 0:00:51]} 34... Rxb2 {[%clk 0:02:11]} 35.
Rxb2 {[%clk 0:00:50.3]} 35... Qxc3 {[%clk 0:02:11.9]} 36. Re2 {[%clk 0:00:42.9]}
36... Qf6 {[%clk 0:02:05.6]} 37. Re8 {[%clk 0:00:42]} 37... d4 {[%clk
0:02:03.6]} 38. Ne6 {[%clk 0:00:34.7]} 38... Qxf5 {[%clk 0:01:59.1]} 39. Qxf5
{[%clk 0:00:24.3]} 39... Rxf5 {[%clk 0:02:01]} 40. Nxd4 {[%clk 0:00:25.9]} 40...
Rh5+ {[%clk 0:01:59]} 41. Kg2 {[%clk 0:00:26.7]} 41... Rxh6 {[%clk 0:02:00]} 42.
Kf1 {[%clk 0:00:26.9]} 42... Rf6 {[%clk 0:01:53.7]} 43. Ke2 {[%clk 0:00:27]}
43... Rh6 {[%clk 0:01:50.1]} 44. f4 {[%clk 0:00:27.8]} 44... Rh2+ {[%clk
0:01:50.2]} 45. Ke3 {[%clk 0:00:29.4]} 45... Rh3+ {[%clk 0:01:51.1]} 46. Ke4
{[%clk 0:00:30.9]} 46... Nf6+ {[%clk 0:01:50]} 47. Kf5 {[%clk 0:00:29]} 47...
Nxe8 {[%clk 0:01:51.9]} 48. Nxc6 {[%clk 0:00:30.2]} 48... Rxa3 {[%clk
0:01:51.4]} 49. Ne5 {[%clk 0:00:30.6]} 49... Ng7+ {[%clk 0:01:51.1]} 50. Kf6
{[%clk 0:00:31.9]} 50... Nh7+ {[%clk 0:01:50.2]} 51. Kf7 {[%clk 0:00:29.2]}
51... Ra4 {[%clk 0:01:49.1]} 52. f5 {[%clk 0:00:28.4]} 52... Rb4 {[%clk
0:01:27.3]} 53. Ng6# {[%clk 0:00:29.2]} 1-0

[Event "*** Titled Tuesday 3|2 Blitz"]
[Site "Chess.com"]
[Date "2014.12.30"]
[Round "9"]
[White "oggy1984"]
[Black "BeerLag"]
[Result "1-0"]
[WhiteElo "2150"]
[BlackElo "2146"]
[TimeControl "180+2"]
[EndTime "12:59:37 PST"]
[Termination "oggy1984 won on time"]

1. e4 {[%clk 0:02:59]} 1... c5 {[%clk 0:02:58.8]} 2. Nf3 {[%clk 0:02:59.8]} 2...
d6 {[%clk 0:03:00.2]} 3. d4 {[%clk 0:03:01.2]} 3... cxd4 {[%clk 0:03:02.1]} 4.
Nxd4 {[%clk 0:03:03.1]} 4... Nf6 {[%clk 0:03:03.7]} 5. Nc3 {[%clk 0:03:04.7]}
5... a6 {[%clk 0:03:05.4]} 6. Bc4 {[%clk 0:03:05.8]} 6... e6 {[%clk 0:03:06.3]}
7. O-O {[%clk 0:03:05.1]} 7... Qc7 {[%clk 0:03:07.9]} 8. Bb3 {[%clk 0:03:05.8]}
8... Nc6 {[%clk 0:03:08.6]} 9. Be3 {[%clk 0:02:57.9]} 9... Be7 {[%clk
0:03:08.2]} 10. Kh1 {[%clk 0:02:58]} 10... h5 {[%clk 0:03:02.3]} 11. f4 {[%clk
0:02:56.8]} 11... b5 {[%clk 0:02:55.8]} 12. f5 {[%clk 0:02:36.9]} 12... Nxd4
{[%clk 0:02:38.2]} 13. Qxd4 {[%clk 0:02:27.2]} 13... e5 {[%clk 0:02:36.1]} 14.
Nd5 {[%clk 0:02:16.4]} 14... Qb7 {[%clk 0:01:41.9]} 15. Qd3 {[%clk 0:02:11.8]}
15... Bd7 {[%clk 0:00:54.8]} 16. Nxe7 {[%clk 0:01:30.3]} 16... Kxe7 {[%clk
0:00:56.5]} 17. Bg5 {[%clk 0:01:27.4]} 17... Bc6 {[%clk 0:00:53.4]} 18. Rad1
{[%clk 0:01:26.6]} 18... Rad8 {[%clk 0:00:52.1]} 19. Rfe1 {[%clk 0:01:23.5]}
19... Kf8 {[%clk 0:00:43.6]} 20. Bxf6 {[%clk 0:01:20.2]} 20... gxf6 {[%clk
0:00:44.6]} 21. Bd5 {[%clk 0:01:20.1]} 21... Rg8 {[%clk 0:00:40.6]} 22. h3
{[%clk 0:01:16.8]} 22... Ke7 {[%clk 0:00:38.5]} 23. c4 {[%clk 0:01:14]} 23...
Bxd5 {[%clk 0:00:34.3]} 24. cxd5 {[%clk 0:01:07.7]} 24... Rc8 {[%clk 0:00:34.7]}
25. Rc1 {[%clk 0:01:08.1]} 25... Qb6 {[%clk 0:00:32.9]} 26. Qd2 {[%clk
0:00:57.7]} 26... h4 {[%clk 0:00:17.2]} 27. b3 {[%clk 0:00:44.3]} 27... Rh8
{[%clk 0:00:11]} 28. Red1 {[%clk 0:00:38.5]} 28... Rhd8 {[%clk 0:00:11.4]} 29.
Qe1 {[%clk 0:00:31.8]} 29... Rxc1 {[%clk 0:00:07.6]} 30. Rxc1 {[%clk 0:00:32.2]}
30... Qd4 {[%clk 0:00:08.2]} 31. Rc7+ {[%clk 0:00:27.1]} 31... Rd7 {[%clk
0:00:09.7]} 32. Rc8 {[%clk 0:00:27.8]} 32... Rd8 {[%clk 0:00:04.6]} 33. Rxd8
{[%clk 0:00:26.6]} 33... Kxd8 {[%clk 0:00:06.5]} 34. Qxh4 {[%clk 0:00:27.9]}
34... Ke7 {[%clk 0:00:06.8]} 35. Qe1 {[%clk 0:00:28.8]} 35... b4 {[%clk
0:00:06.6]} 36. h4 {[%clk 0:00:23.3]} 36... Qc3 {[%clk 0:00:07]} 37. Qf2 {[%clk
0:00:17.7]} 1-0

[Event "*** Titled Tuesday 3|2 Blitz"]
[Site "Chess.com"]
[Date "2014.12.30"]
[Round "9"]
[White "GedoGluperd"]
[Black "AUSSIE_PINOY"]
[Result "1-0"]
[WhiteElo "2294"]
[BlackElo "2257"]
[TimeControl "180+2"]
[EndTime "12:59:38 PST"]
[Termination "GedoGluperd won by resignation"]

1. d4 {[%clk 0:02:47.3]} 1... d5 {[%clk 0:02:59.1]} 2. c4 {[%clk 0:02:47.5]}
2... e5 {[%clk 0:03:00.3]} 3. dxe5 {[%clk 0:02:48.1]} 3... d4 {[%clk 0:03:01.3]}
4. Nf3 {[%clk 0:02:49.5]} 4... Nc6 {[%clk 0:03:02.5]} 5. g3 {[%clk 0:02:50.7]}
5... Nge7 {[%clk 0:03:02.8]} 6. Bg2 {[%clk 0:02:49.6]} 6... Ng6 {[%clk
0:03:03.7]} 7. Nbd2 {[%clk 0:02:48]} 7... Ngxe5 {[%clk 0:03:02.2]} 8. O-O {[%clk
0:02:49.1]} 8... Be7 {[%clk 0:03:02.6]} 9. b3 {[%clk 0:02:47.4]} 9... Nxf3+
{[%clk 0:03:02.7]} 10. Nxf3 {[%clk 0:02:48]} 10... Bf6 {[%clk 0:03:03.8]} 11.
Bb2 {[%clk 0:02:48.8]} 11... O-O {[%clk 0:03:04.9]} 12. Qd2 {[%clk 0:02:33.2]}
12... Qe7 {[%clk 0:03:04.9]} 13. Rfe1 {[%clk 0:02:25.8]} 13... Rd8 {[%clk
0:02:48.8]} 14. Rad1 {[%clk 0:02:25.5]} 14... Bf5 {[%clk 0:02:48.8]} 15. b4
{[%clk 0:02:13.9]} 15... Qxb4 {[%clk 0:02:18.7]} 16. Qxb4 {[%clk 0:02:05.2]}
16... Nxb4 {[%clk 0:02:17]} 17. Bxd4 {[%clk 0:02:04.8]} 17... Bc2 {[%clk
0:00:33]} 18. Rd2 {[%clk 0:01:56.7]} 18... Bxd4 {[%clk 0:00:31.3]} 19. Nxd4
{[%clk 0:01:56.4]} 19... c5 {[%clk 0:00:28.6]} 20. Rxc2 {[%clk 0:01:51.5]} 20...
Rxd4 {[%clk 0:00:18.3]} 21. Rb2 {[%clk 0:01:44.3]} 21... Rxc4 {[%clk 0:00:11.3]}
22. Bxb7 {[%clk 0:01:42.8]} 22... Rd8 {[%clk 0:00:11.9]} 23. a3 {[%clk
0:01:35.4]} 23... Nc2 {[%clk 0:00:12.6]} 24. Rc1 {[%clk 0:01:30.9]} 24... Nxa3
{[%clk 0:00:13.6]} 25. Ra1 {[%clk 0:01:27.1]} 25... Nc2 {[%clk 0:00:12.6]} 26.
Rxa7 {[%clk 0:01:26.3]} 26... Nb4 {[%clk 0:00:12.9]} 27. Bf3 {[%clk 0:01:16.7]}
27... g6 {[%clk 0:00:13.9]} 28. Rb3 {[%clk 0:01:11.8]} 28... Rc1+ {[%clk
0:00:13.1]} 29. Kg2 {[%clk 0:01:12.3]} 29... Rd6 {[%clk 0:00:11.7]} 30. Re3
{[%clk 0:01:12.3]} 30... Kg7 {[%clk 0:00:11.9]} 31. h4 {[%clk 0:01:12.6]} 31...
h5 {[%clk 0:00:12.6]} 32. Ree7 {[%clk 0:01:13.3]} 32... Rf6 {[%clk 0:00:13.6]}
33. Rec7 {[%clk 0:01:11.4]} 33... Nc2 {[%clk 0:00:12.7]} 34. Bd5 {[%clk
0:00:56.6]} 34... Ne1+ {[%clk 0:00:13.5]} 35. Kg1 {[%clk 0:00:44.5]} 35... Nf3+
{[%clk 0:00:12]} 36. Kg2 {[%clk 0:00:44.2]} 36... Rg1+ {[%clk 0:00:12.2]} 37.
Kh3 {[%clk 0:00:43.5]} 37... Rh1+ {[%clk 0:00:13.4]} 38. Kg2 {[%clk 0:00:44.8]}
38... Rh2+ {[%clk 0:00:14.5]} 39. Kf1 {[%clk 0:00:45.2]} 39... Rh1+ {[%clk
0:00:15.5]} 40. Kg2 {[%clk 0:00:46.3]} 40... Rg1+ {[%clk 0:00:16.3]} 41. Kh3
{[%clk 0:00:47]} 41... Rh1+ {[%clk 0:00:17.1]} 42. Kg2 {[%clk 0:00:48.2]} 42...
Rh2+ {[%clk 0:00:18.2]} 43. Kf1 {[%clk 0:00:49.4]} 43... Nd2+ {[%clk 0:00:19.4]}
44. Ke1 {[%clk 0:00:50.3]} 44... Rfxf2 {[%clk 0:00:18.7]} 45. Rxf7+ {[%clk
0:00:48]} 45... Rxf7 {[%clk 0:00:19.6]} 46. Rxf7+ {[%clk 0:00:48.3]} 46... Kh6
{[%clk 0:00:20.8]} 47. Kxd2 {[%clk 0:00:49.9]} 1-0

[Event "*** Titled Tuesday 3|2 Blitz"]
[Site "Chess.com"]
[Date "2014.12.30"]
[Round "9"]
[White "FlySooHigh"]
[Black "DanielRensch"]
[Result "1-0"]
[WhiteElo "2376"]
[BlackElo "2341"]
[TimeControl "180+2"]
[EndTime "12:59:50 PST"]
[Termination "FlySooHigh won by resignation"]

1. e4 {[%clk 0:02:58]} 1... c5 {[%clk 0:02:58.1]} 2. Nf3 {[%clk 0:02:58.5]} 2...
d6 {[%clk 0:02:58.1]} 3. Nc3 {[%clk 0:02:58.9]} 3... Nf6 {[%clk 0:02:57.7]} 4.
e5 {[%clk 0:02:59.4]} 4... dxe5 {[%clk 0:02:58.2]} 5. Nxe5 {[%clk 0:03:01.3]}
5... Nbd7 {[%clk 0:02:59.2]} 6. d4 {[%clk 0:03:02]} 6... e6 {[%clk 0:02:59.2]}
7. Bf4 {[%clk 0:02:56.2]} 7... a6 {[%clk 0:02:59.5]} 8. Be2 {[%clk 0:02:56.5]}
8... cxd4 {[%clk 0:02:57.6]} 9. Qxd4 {[%clk 0:02:56.8]} 9... Bc5 {[%clk
0:02:59.1]} 10. Qa4 {[%clk 0:02:55.7]} 10... O-O {[%clk 0:02:58.2]} 11. O-O-O
{[%clk 0:02:56.4]} 11... Qe7 {[%clk 0:02:38.9]} 12. Bf3 {[%clk 0:02:56.9]} 12...
Ra7 {[%clk 0:02:25.6]} 13. Qc4 {[%clk 0:02:32.8]} 13... b5 {[%clk 0:02:21.8]}
14. Qe2 {[%clk 0:02:28.9]} 14... Nxe5 {[%clk 0:02:22.2]} 15. Bxe5 {[%clk
0:02:27.7]} 15... Bb7 {[%clk 0:02:09]} 16. Kb1 {[%clk 0:02:23.5]} 16... Bxf3
{[%clk 0:02:00.9]} 17. Qxf3 {[%clk 0:02:25.4]} 17... Rc8 {[%clk 0:02:00.7]} 18.
Qg3 {[%clk 0:02:05.8]} 18... Ne8 {[%clk 0:01:32.5]} 19. Rhe1 {[%clk 0:01:58.6]}
19... Rd7 {[%clk 0:01:23.9]} 20. Ne4 {[%clk 0:01:49.2]} 20... Rcd8 {[%clk
0:00:47.3]} 21. Rxd7 {[%clk 0:01:38.2]} 21... Qxd7 {[%clk 0:00:47.1]} 22. a3
{[%clk 0:01:28.4]} 22... Bf8 {[%clk 0:00:44.7]} 23. f4 {[%clk 0:00:50.8]} 23...
Qe7 {[%clk 0:00:41.2]} 24. Bc3 {[%clk 0:00:44.6]} 24... f6 {[%clk 0:00:31.4]}
25. Qe3 {[%clk 0:00:35.6]} 25... Qf7 {[%clk 0:00:30.7]} 26. Qb6 {[%clk
0:00:35.2]} 26... Rd5 {[%clk 0:00:19.4]} 27. Qxa6 {[%clk 0:00:33.9]} 27... h5
{[%clk 0:00:13.9]} 28. Qc6 {[%clk 0:00:28.7]} 28... h4 {[%clk 0:00:14.4]} 29.
Nf2 {[%clk 0:00:25.4]} 29... Nc7 {[%clk 0:00:13.6]} 30. Nd3 {[%clk 0:00:22]}
30... Rd6 {[%clk 0:00:13.6]} 31. Qe4 {[%clk 0:00:13.9]} 31... Nd5 {[%clk
0:00:14.9]} 32. Bd2 {[%clk 0:00:14.7]} 32... Rc6 {[%clk 0:00:15.7]} 33. g3
{[%clk 0:00:11.4]} 33... Qc7 {[%clk 0:00:16.2]} 34. c3 {[%clk 0:00:10.9]} 34...
hxg3 {[%clk 0:00:17.5]} 35. hxg3 {[%clk 0:00:11.7]} 35... Kf7 {[%clk 0:00:18.7]}
36. f5 {[%clk 0:00:10.2]} 36... e5 {[%clk 0:00:18.7]} 37. Qxd5+ {[%clk
0:00:11.1]} 37... Ke7 {[%clk 0:00:19.4]} 38. Be3 {[%clk 0:00:09.8]} 38... Ke8
{[%clk 0:00:18.6]} 39. Qxb5 {[%clk 0:00:10.3]} 39... Qd7 {[%clk 0:00:17.3]} 40.
Nb4 {[%clk 0:00:08.6]} 40... Rc7 {[%clk 0:00:14.9]} 41. Qxd7+ {[%clk 0:00:08.7]}
41... Rxd7 {[%clk 0:00:16.2]} 42. Kc2 {[%clk 0:00:10.3]} 1-0

[Event "*** Titled Tuesday 3|2 Blitz"]
[Site "Chess.com"]
[Date "2014.12.30"]
[Round "9"]
[White "LADIESGET2KNOWME"]
[Black "MikePerelshteyn"]
[Result "1-0"]
[WhiteElo "2237"]
[BlackElo "2048"]
[TimeControl "180+2"]
[EndTime "13:01:02 PST"]
[Termination "LADIESGET2KNOWME won by resignation"]

1. d4 {[%clk 0:02:58.5]} 1... c6 {[%clk 0:02:59]} 2. Nf3 {[%clk 0:02:58]} 2...
Nf6 {[%clk 0:02:59.5]} 3. c3 {[%clk 0:02:56.8]} 3... g6 {[%clk 0:02:59.3]} 4.
Bf4 {[%clk 0:02:56.7]} 4... Bg7 {[%clk 0:03:00.4]} 5. e3 {[%clk 0:02:57.4]} 5...
O-O {[%clk 0:03:01.3]} 6. Nbd2 {[%clk 0:02:59]} 6... d6 {[%clk 0:03:02.1]} 7. h3
{[%clk 0:03:00.3]} 7... Nbd7 {[%clk 0:03:01.8]} 8. Be2 {[%clk 0:03:01.2]} 8...
a6 {[%clk 0:03:03.1]} 9. O-O {[%clk 0:03:01.5]} 9... b5 {[%clk 0:03:04.3]} 10.
a4 {[%clk 0:03:02.5]} 10... Bb7 {[%clk 0:03:05]} 11. axb5 {[%clk 0:02:59]} 11...
cxb5 {[%clk 0:03:00.9]} 12. Bh2 {[%clk 0:02:52.3]} 12... Nb6 {[%clk 0:03:01.5]}
13. b3 {[%clk 0:02:46.9]} 13... Qd7 {[%clk 0:02:52.8]} 14. c4 {[%clk 0:02:47]}
14... Rfc8 {[%clk 0:02:49.8]} 15. Qb1 {[%clk 0:02:40.5]} 15... h6 {[%clk
0:02:42.9]} 16. Rc1 {[%clk 0:02:40.7]} 16... Kf8 {[%clk 0:02:26.6]} 17. Ra2
{[%clk 0:02:41.3]} 17... Kg8 {[%clk 0:02:24.4]} 18. Rac2 {[%clk 0:02:41.3]}
18... Kf8 {[%clk 0:02:14.7]} 19. Ne1 {[%clk 0:02:11.3]} 19... Ne4 {[%clk
0:02:10.6]} 20. Nef3 {[%clk 0:02:10]} 20... b4 {[%clk 0:02:00.5]} 21. Bd3 {[%clk
0:02:01.2]} 21... Nc3 {[%clk 0:02:00.8]} 22. Qb2 {[%clk 0:02:02.1]} 22... a5
{[%clk 0:01:54.6]} 23. Ra1 {[%clk 0:01:57.2]} 23... Kg8 {[%clk 0:01:49.3]} 24.
Bg3 {[%clk 0:01:51.9]} 24... f5 {[%clk 0:01:49.3]} 25. Re1 {[%clk 0:01:39.1]}
25... Ne4 {[%clk 0:01:10.2]} 26. Bxe4 {[%clk 0:01:25.1]} 26... fxe4 {[%clk
0:01:11]} 27. Nh2 {[%clk 0:01:26.7]} 27... h5 {[%clk 0:00:57]} 28. Qb1 {[%clk
0:01:06.2]} 28... Qf5 {[%clk 0:00:55.6]} 29. Rcc1 {[%clk 0:00:50.8]} 29... Nd7
{[%clk 0:00:41.1]} 30. Re2 {[%clk 0:00:41]} 30... g5 {[%clk 0:00:30.7]} 31. h4
{[%clk 0:00:38.9]} 31... gxh4 {[%clk 0:00:21.1]} 32. Bxh4 {[%clk 0:00:40.8]}
32... Bf6 {[%clk 0:00:18.1]} 33. Bxf6 {[%clk 0:00:38.4]} 33... Nxf6 {[%clk
0:00:19.1]} 34. d5 {[%clk 0:00:37.2]} 34... Kf7 {[%clk 0:00:18.3]} 35. Rf1
{[%clk 0:00:37.1]} 35... Rg8 {[%clk 0:00:19]} 36. f3 {[%clk 0:00:37.6]} 36...
Qg6 {[%clk 0:00:15.6]} 37. Nxe4 {[%clk 0:00:35.6]} 37... Nxe4 {[%clk 0:00:15.8]}
38. fxe4+ {[%clk 0:00:36.1]} 38... Ke8 {[%clk 0:00:17]} 39. Nf3 {[%clk
0:00:34.1]} 39... Kd7 {[%clk 0:00:14.8]} 40. e5 {[%clk 0:00:34.7]} 40... Raf8
{[%clk 0:00:14.4]} 41. e6+ {[%clk 0:00:34.9]} 41... Kc7 {[%clk 0:00:14.3]} 42.
Qxg6 {[%clk 0:00:36.4]} 42... Rxg6 {[%clk 0:00:15.2]} 43. Nd4 {[%clk 0:00:37.9]}
43... Rxf1+ {[%clk 0:00:14.5]} 44. Kxf1 {[%clk 0:00:39.8]} 44... Kb6 {[%clk
0:00:11.2]} 45. Rf2 {[%clk 0:00:38.9]} 45... a4 {[%clk 0:00:08.9]} 46. bxa4
{[%clk 0:00:37.4]} 46... Kc5 {[%clk 0:00:10.1]} 47. Rc2 {[%clk 0:00:30.3]} 47...
Rg8 {[%clk 0:00:05.4]} 48. Nb3+ {[%clk 0:00:31]} 48... Kb6 {[%clk 0:00:06]} 49.
a5+ {[%clk 0:00:30.9]} 49... Ka6 {[%clk 0:00:07.3]} 50. e4 {[%clk 0:00:31.2]}
50... Rg4 {[%clk 0:00:07.8]} 51. Re2 {[%clk 0:00:28]} 51... Bxd5 {[%clk
0:00:08.2]} 52. cxd5 {[%clk 0:00:27.8]} 52... Rg3 {[%clk 0:00:08.9]} 53. Rb2
{[%clk 0:00:22.1]} 53... Kb5 {[%clk 0:00:10.3]} 54. Nd4+ {[%clk 0:00:20.8]}
54... Kc4 {[%clk 0:00:11.3]} 55. Nc6 {[%clk 0:00:21.7]} 55... b3 {[%clk
0:00:11.4]} 56. Nxe7 {[%clk 0:00:22.1]} 56... Kc3 {[%clk 0:00:12.3]} 57. Rxb3+
{[%clk 0:00:21.3]} 57... Kxb3 {[%clk 0:00:13.1]} 58. Nf5 {[%clk 0:00:22]} 58...
Rg8 {[%clk 0:00:13.4]} 59. Nxd6 {[%clk 0:00:22.2]} 59... Rg7 {[%clk 0:00:13.5]}
60. Nf5 {[%clk 0:00:22]} 60... Ra7 {[%clk 0:00:13.8]} 61. e7 {[%clk 0:00:22]}
61... Ra8 {[%clk 0:00:14.9]} 62. d6 {[%clk 0:00:22.9]} 1-0